[Event "Turkish Youth Championships 2023"]
[Site "Samsun"]
[Date "2023.05.20"]
[Round "3.14"]
[White "Hasirci, Ozgur Deniz"]
[Black "Karadas, Hena"]
[Result "1-0"]
[WhiteElo "1763"]
[BlackElo "1573"]
[Annotator "COMBH"]
[PlyCount "67"]
[EventDate "2023.05.19"]
[EventType "swiss"]
[EventCountry "TUR"]
[TimeControl "5400+30"]
[BlackClock "0:11:52"]

1. e4 c5 2. Nf3 Nc6 3. Bb5 g6 4. Bxc6 dxc6 5. d3 Bg7 6. Nc3 e5 7. Be3 b6 8. a4 a5 9. Nd2 Be6 10. b3 Ne7 11. Nc4 f5 12. Bg5 Rb8 {[%emt 0:20:30]} 13. exf5 {[%emt 0:25:00]} gxf5 {[%emt 0:07:30]} 14. Qh5+ {[%emt 0:11:30]} Bf7 {[%emt 0:02:30]} 15. Qh4 {[%emt 0:01:30]} Bxc4 {[%emt 0:08:30]} 16. bxc4 {[%emt 0:03:30]} Qd4 {[%emt 0:01:30]} 17. Qh5+ {[%emt 0:01:30]} Ng6 {[%emt 0:02:30]} 18. Ra3 {[%emt 0:02:30]} O-O {[%emt 0:02:30]} 19. O-O {[%emt 0:02:30]} Qd7 {[%emt 0:10:30]} 20. Rb3 {[%emt 0:03:30]} Qc7 {[%emt 0:02:30]} 21. Re1 {[%emt 0:02:30]} Rbe8 {[%emt 0:01:30]} 22. Re3 {[%emt 0:00:30]} e4 {[%emt 0:03:30]} 23. dxe4 {[%emt 0:06:30]} Bd4 {[%emt 0:01:30]} 24. exf5 {[%emt 0:06:30]} Bxe3 {[%emt 0:03:30]} 25. Bxe3 {[%emt 0:00:00]} Ne5 {[%emt 0:02:30]} 26. Bh6 {[%emt 0:04:00]} Rf7 {[%emt 0:06:30]} 27. Ne4 {[%emt 0:02:30]} Kh8 {[%emt 0:03:30]} 28. Ng5 {[%emt 0:04:30]} Rd8 {[%emt 0:03:30]} 29. Nxf7+ {[%emt 0:04:30]} Qxf7 {[%emt 0:00:30]} 30. Qe2 {[%emt 0:00:00]} Qxf5 {[%emt 0:03:43]} 31. h3 {[%emt 0:05:57]} Rg8 {[%emt 0:01:41]} 32. Bc1 {[%emt 0:00:34]} Re8 {[%emt 0:03:41]} 33. Bb2 {[%emt 0:00:38]} Kg8 {[%emt 0:00:49]} 34. Re3 {[%emt 0:00:00]} 1-0

[Event "Turkish Youth Championships 2023"]
[Site "Samsun"]
[Date "2023.05.20"]
[Round "3.15"]
[White "Tonoglu, Engin Erdem"]
[Black "Ozgun, Yigit Deniz"]
[Result "1/2-1/2"]
[WhiteElo "1404"]
[BlackElo "1747"]
[Annotator "COMBH"]
[PlyCount "159"]
[EventDate "2023.05.19"]
[EventType "swiss"]
[EventCountry "TUR"]
[TimeControl "5400+30"]
[BlackClock "0:37:00"]

1. c4 Nf6 2. Nc3 c5 3. Nf3 Nc6 4. e3 g6 5. d4 cxd4 6. Nxd4 Bg7 7. Be2 O-O 8. O-O d5 9. cxd5 Nxd5 10. Nxc6 bxc6 11. Bd2 Rb8 {[%emt 0:16:00]} 12. e4 {[%emt 0:33:30]} Nxc3 {[%emt 0:03:30]} 13. Bxc3 {[%emt 0:01:30]} Bxc3 {[%emt 0:01:30]} 14. bxc3 {[%emt 0:00:30]} Qa5 {[%emt 0:00:00]} 15. Bc4 {[%emt 0:10:30]} Qxc3 {[%emt 0:03:00]} 16. Rc1 {[%emt 0:00:00]} Qa5 {[%emt 0:00:30]} 17. Qe2 {[%emt 0:05:00]} Rb6 {[%emt 0:02:30]} 18. Rc2 {[%emt 0:02:30]} Ba6 {[%emt 0:00:30]} 19. Rfc1 {[%emt 0:01:30]} Bxc4 {[%emt 0:00:30]} 20. Qxc4 {[%emt 0:06:30]} Rd8 {[%emt 0:03:30]} 21. g3 {[%emt 0:05:30]} Rd6 {[%emt 0:03:30]} 22. Kg2 {[%emt 0:01:30]} Qa6 {[%emt 0:06:30]} 23. a3 {[%emt 0:05:30]} Qa5 {[%emt 0:05:30]} 24. Qc5 {[%emt 0:02:30]} Qxc5 {[%emt 0:02:30]} 25. Rxc5 {[%emt 0:00:30]} Rd3 {[%emt 0:00:00]} 26. a4 {[%emt 0:02:30]} Rd4 {[%emt 0:00:00]} 27. a5 {[%emt 0:03:30]} Ra6 {[%emt 0:00:30]} 28. Rxc6 {[%emt 0:02:58]} Rxa5 {[%emt 0:00:30]} 29. R6c4 {[%emt 0:00:58]} Rxc4 {[%emt 0:00:30]} 30. Rxc4 {[%emt 0:00:02]} Ra2 {[%emt 0:00:30]} 31. Rc7 {[%emt 0:01:17]} Kf8 {[%emt 0:00:30]} 32. g4 {[%emt 0:00:48]} g5 {[%emt 0:00:30]} 33. Rc5 {[%emt 0:01:05]} h6 {[%emt 0:00:30]} 34. h3 {[%emt 0:02:26]} a5 {[%emt 0:00:30]} 35. Kf3 {[%emt 0:00:00]} a4 {[%emt 0:00:30]} 36. Ra5 {[%emt 0:00:45]} Kg7 {[%emt 0:00:30]} 37. e5 {[%emt 0:00:06]} a3 {[%emt 0:00:00]} 38. Kg2 {[%emt 0:00:13]} Ra1 {[%emt 0:00:00]} 39. Kh2 {[%emt 0:00:47]} e6 {[%emt 0:00:30]} 40. Kg2 {[%emt 0:00:30]} Kg6 {[%emt 0:00:30]} 41. Ra6 {[%emt 0:00:37]} Kg7 {[%emt 0:05:30]} 42. Ra8 {[%emt 0:00:22]} Ra2 {[%emt 0:00:30]} 43. Kf3 {[%emt 0:00:35]} Ra1 {[%emt 0:00:30]} 44. Kg2 {[%emt 0:00:06]} Re1 {[%emt 0:02:30]} 45. Rxa3 {[%emt 0:00:32]} Rxe5 {[%emt 0:00:30]} 46. Kg3 {[%emt 0:01:27]} Re1 {[%emt 0:00:30]} 47. Ra7 {[%emt 0:01:13]} Rc1 {[%emt 0:00:30]} 48. Ra3 {[%emt 0:01:20]} Kg6 {[%emt 0:00:30]} 49. Rb3 {[%emt 0:01:27]} Rc4 {[%emt 0:01:30]} 50. Ra3 {[%emt 0:02:06]} h5 {[%emt 0:00:30]} 51. Rb3 {[%emt 0:02:53]} f5 {[%emt 0:00:30]} 52. gxf5+ {[%emt 0:01:04]} Kxf5 {[%emt 0:00:30]} 53. Rb8 {[%emt 0:00:13]} Rc3+ {[%emt 0:00:30]} 54. Kg2 {[%emt 0:00:01]} Rc5 {[%emt 0:02:30]} 55. Rh8 {[%emt 0:00:47]} h4 {[%emt 0:00:00]} 56. Rf8+ {[%emt 0:00:14]} Ke4 {[%emt 0:00:00]} 57. Rg8 {[%emt 0:00:50]} Rf5 {[%emt 0:00:30]} 58. Ra8 {[%emt 0:00:00]} e5 {[%emt 0:00:30]} 59. Ra4+ {[%emt 0:02:00]} Kd5 {[%emt 0:00:30]} 60. Ra5+ {[%emt 0:00:10]} Ke6 {[%emt 0:00:00]} 61. Ra6+ {[%emt 0:00:03]} Kf7 {[%emt 0:00:00]} 62. Ra7+ {[%emt 0:01:05]} Kg6 {[%emt 0:00:30]} 63. Ra6+ {[%emt 0:00:30]} Rf6 {[%emt 0:00:00]} 64. Ra4 {[%emt 0:00:00]} Kf5 {[%emt 0:00:00]} 65. Ra8 {[%emt 0:00:19]} g4 {[%emt 0:02:30]} 66. Rh8 {[%emt 0:03:18]} gxh3+ {[%emt 0:04:30]} 67. Kxh3 {[%emt 0:00:30]} Kf4 {[%emt 0:00:30]} 68. Kxh4 {[%emt 0:03:28]} e4 {[%emt 0:00:30]} 69. Rh7 {[%emt 0:00:55]} Rf8 {[%emt 0:00:30]} 70. Rh6 {[%emt 0:00:23]} Kf3 {[%emt 0:04:30]} 71. Re6 {[%emt 0:00:14]} Rf5 {[%emt 0:00:00]} 72. Re7 {[%emt 0:00:18]} Rf4+ {[%emt 0:02:00]} 73. Kg5 {[%emt 0:00:30]} Rg4+ {[%emt 0:00:30]} 74. Kf5 {[%emt 0:00:00]} Rg8 {[%emt 0:00:00]} 75. Ke5 {[%emt 0:00:14]} Rg5+ {[%emt 0:00:00]} 76. Kd4 {[%emt 0:00:46]} Rg4 {[%emt 0:00:30]} 77. Kd5 {[%emt 0:00:56]} Rf4 {[%emt 0:00:30]} 78. Re8 {[%emt 0:00:00]} Rf7 {[%emt 0:00:30]} 79. Ke5 {[%emt 0:00:41]} Kxf2 {[%emt 0:01:30]} 80. Kxe4 {[%emt 0:00:02]} 1/2-1/2

[Event "Turkish Youth Championships 2023"]
[Site "Samsun"]
[Date "2023.05.20"]
[Round "3.16"]
[White "Coskun, Emre"]
[Black "Caliskan, Murat Osman"]
[Result "1-0"]
[WhiteElo "1750"]
[BlackElo "1538"]
[Annotator "COMBH"]
[PlyCount "51"]
[EventDate "2023.05.19"]
[EventType "swiss"]
[EventCountry "TUR"]
[TimeControl "5400+30"]
[BlackClock "1:06:00"]

1. e4 c5 2. Nc3 d6 3. g3 Nc6 4. Bg2 g6 5. d3 Bg7 6. f4 Nf6 7. Nf3 Bg4 8. h3 Bxf3 9. Qxf3 Nd4 10. Qf2 Rb8 11. O-O O-O 12. f5 b5 13. g4 b4 14. Nd1 Qc7 15. Ne3 {[%emt 0:15:00]} Rbe8 {[%emt 0:28:00]} 16. g5 {[%emt 0:03:30]} Nd7 {[%emt 0:01:30]} 17. Nd5 {[%emt 0:00:30]} Qa5 {[%emt 0:01:30]} 18. f6 {[%emt 0:03:30]} exf6 {[%emt 0:00:30]} 19. gxf6 {[%emt 0:00:00]} Nxf6 {[%emt 0:02:30]} 20. Nxf6+ {[%emt 0:00:00]} Bxf6 {[%emt 0:00:30]} 21. Qxf6 {[%emt 0:00:30]} Re6 {[%emt 0:00:00]} 22. Qf2 {[%emt 0:01:30]} f5 {[%emt 0:00:00]} 23. Bh6 {[%emt 0:00:00]} Rfe8 {[%emt 0:00:30]} 24. exf5 {[%emt 0:02:00]} Re2 {[%emt 0:00:30]} 25. Bd5+ {[%emt 0:01:30]} Kh8 {[%emt 0:00:00]} 26. f6 {[%emt 0:00:30]} 1-0

[Event "Turkish Youth Championships 2023"]
[Site "Samsun"]
[Date "2023.05.20"]
[Round "3.17"]
[White "Adali, Umut"]
[Black "Atis, Hasan"]
[Result "0-1"]
[WhiteElo "1441"]
[BlackElo "1890"]
[Annotator "COMBH"]
[PlyCount "73"]
[EventDate "2023.05.19"]
[EventType "swiss"]
[EventCountry "TUR"]
[TimeControl "5400+30"]
[BlackClock "0:29:00"]

1. e4 c5 2. c3 Nf6 3. e5 Nd5 4. d4 cxd4 5. cxd4 d6 6. Nf3 e6 7. Bc4 Be7 8. O-O O-O 9. Nc3 Nxc3 10. bxc3 Qc7 11. Qd3 Nd7 12. Bg5 Nb6 13. Bb3 dxe5 14. Bxe7 Qxe7 15. Nxe5 Bd7 16. c4 {[%emt 0:09:30]} Rfd8 {[%emt 0:31:30]} 17. Rfe1 {[%emt 0:01:30]} Be8 {[%emt 0:00:30]} 18. Rad1 {[%emt 0:01:30]} Rac8 {[%emt 0:00:30]} 19. d5 {[%emt 0:05:30]} Qc5 {[%emt 0:09:30]} 20. Qf3 {[%emt 0:01:30]} exd5 {[%emt 0:00:30]} 21. cxd5 {[%emt 0:00:30]} Rd6 {[%emt 0:02:30]} 22. Nd3 {[%emt 0:03:30]} Qa3 {[%emt 0:11:30]} 23. Qe4 {[%emt 0:04:30]} Rdd8 {[%emt 0:01:30]} 24. Ne5 {[%emt 0:01:30]} Qd6 {[%emt 0:01:30]} 25. Nc4 {[%emt 0:12:30]} Nxc4 {[%emt 0:01:30]} 26. Bxc4 {[%emt 0:00:00]} Bd7 {[%emt 0:02:30]} 27. Bb3 {[%emt 0:03:00]} Re8 {[%emt 0:04:30]} 28. Qd4 {[%emt 0:00:30]} a5 {[%emt 0:00:30]} 29. Qd2 {[%emt 0:06:30]} a4 {[%emt 0:01:30]} 30. Bc2 {[%emt 0:00:00]} Red8 {[%emt 0:04:30]} 31. Be4 {[%emt 0:05:00]} b5 {[%emt 0:00:30]} 32. Re3 {[%emt 0:00:30]} g6 {[%emt 0:00:30]} 33. Rg3 {[%emt 0:00:30]} Rc4 {[%emt 0:01:30]} 34. Bd3 {[%emt 0:01:30]} Rd4 {[%emt 0:02:30]} 35. h3 {[%emt 0:00:30]} Qxd5 {[%emt 0:00:00]} 36. Kh2 {[%emt 0:00:30]} Bf5 {[%emt 0:00:00]} 37. Qg5 {[%emt 0:00:30]} 0-1

[Event "Turkish Youth Championships 2023"]
[Site "Samsun"]
[Date "2023.05.20"]
[Round "3.18"]
[White "Eroz, Enis"]
[Black "Herdem, Talha"]
[Result "1-0"]
[WhiteElo "1830"]
[BlackElo "1417"]
[Annotator "COMBH"]
[PlyCount "45"]
[EventDate "2023.05.19"]
[EventType "swiss"]
[EventCountry "TUR"]
[TimeControl "5400+30"]
[BlackClock "0:28:00"]

1. e4 c5 2. Nc3 e6 3. g3 Nc6 4. Bg2 g6 5. d3 Bg7 6. Nh3 Nge7 7. O-O O-O 8. Be3 d6 9. Qd2 Re8 10. Bh6 Bh8 11. f4 Rb8 12. g4 f5 {[%emt 0:14:30]} 13. Kh1 {[%emt 0:29:00]} b5 {[%emt 0:02:30]} 14. Rae1 {[%emt 0:04:30]} b4 {[%emt 0:03:30]} 15. Nd1 {[%emt 0:00:30]} Bd7 {[%emt 0:05:30]} 16. Ng5 {[%emt 0:07:30]} Qa5 {[%emt 0:13:30]} 17. exf5 {[%emt 0:09:30]} exf5 {[%emt 0:00:30]} 18. gxf5 {[%emt 0:01:30]} Bxf5 {[%emt 0:00:30]} 19. Qe2 {[%emt 0:01:30]} Qd8 {[%emt 0:15:30]} 20. Ne3 {[%emt 0:04:30]} Nd4 {[%emt 0:11:30]} 21. Nxf5 {[%emt 0:02:30]} gxf5 {[%emt 0:03:30]} 22. Qh5 {[%emt 0:00:30]} Ng6 {[%emt 0:01:30]} 23. Bd5+ {[%emt 0:00:00]} 1-0

[Event "Turkish Youth Championships 2023"]
[Site "Samsun"]
[Date "2023.05.21"]
[Round "3.18"]
[White "Cicek, Bilal Emre"]
[Black "Akyuz, Pars"]
[Result "1-0"]
[ECO "D45"]
[WhiteElo "1600"]
[BlackElo "1219"]
[Annotator "NA RC COMBH"]
[PlyCount "47"]
[EventDate "2023.05.19"]
[EventType "swiss"]
[EventCountry "TUR"]
[SourceTitle "playchess.com"]
[Source "ChessBase"]
[SourceQuality "1"]
[TimeControl "5400+30"]

1. d4 {[%emt 0:01:00]} d5 {[%emt 0:01:00]} 2. c4 {[%emt 0:00:30]} c6 {[%emt 0:00:00]} 3. Nf3 {[%emt 0:01:30]} Nf6 {[%emt 0:00:00]} 4. Nc3 {[%emt 0:00:30]} e6 {[%emt 0:00:30]} 5. e3 {[%emt 0:00:00]} Be7 {[%emt 0:03:30]} 6. Bd3 {[%emt 0:00:00]} O-O {[%emt 0:04:30]} 7. O-O {[%emt 0:00:30]} dxc4 {[%emt 0:03:30]} 8. Bxc4 {[%emt 0:00:30]} b5 {[%emt 0:00:30]} 9. Bd3 {[%emt 0:01:30]} a6 {[%emt 0:02:30]} 10. e4 {[%emt 0:01:30]} h6 {[%emt 0:03:30]} 11. e5 {[%emt 0:01:30]} Nfd7 {[%emt 0:08:30]} 12. Qe2 {[%emt 0:01:30]} Re8 {[%emt 0:04:30]} 13. Qe4 {[%emt 0:12:30]} Nf8 {[%emt 0:00:30]} 14. Qg4 {[%emt 0:00:30]} Kh8 {[%emt 0:04:30]} 15. Qh5 {[%emt 0:00:30]} Kg8 {[%emt 0:04:30]} 16. Ne4 {[%emt 0:02:30]} Ng6 {[%emt 0:07:30]} 17. Nd6 {[%emt 0:07:30]} Bxd6 {[%emt 0:07:30]} 18. Bxg6 {[%emt 0:02:30]} Rf8 {[%emt 0:05:30]} 19. Bc2 {[%emt 0:01:30]} Be7 {[%emt 0:02:30]} 20. Bxh6 {[%emt 0:02:30]} gxh6 {[%emt 0:01:30]} 21. Qxh6 {[%emt 0:00:00]} f5 {[%emt 0:01:30]} 22. exf6 {[%emt 0:00:00]} Rxf6 {[%emt 0:00:30]} 23. Qh7+ {[%emt 0:00:30]} Kf8 {[%emt 0:00:30]} 24. Qh8+ {[%emt 0:00:00]} 1-0

[Event "Turkish Youth Championships 2023"]
[Site "Samsun"]
[Date "2023.05.20"]
[Round "3.19"]
[White "Derbentli, Cemil Furkan"]
[Black "Yildiz, Elif Zeren"]
[Result "0-1"]
[WhiteElo "1486"]
[BlackElo "1722"]
[Annotator "COMBH"]
[PlyCount "39"]
[EventDate "2023.05.19"]
[EventType "swiss"]
[EventCountry "TUR"]
[TimeControl "5400+30"]
[BlackClock "1:02:00"]

1. e4 c5 2. Nf3 d6 3. d4 cxd4 4. Nxd4 Nf6 5. Nc3 a6 6. Bg5 e6 7. f4 Nbd7 8. Qf3 Qc7 9. g4 b5 10. a3 Bb7 11. O-O-O Be7 {[%emt 0:13:00]} 12. Bxf6 {[%emt 0:34:30]} Nxf6 {[%emt 0:00:30]} 13. Be2 {[%emt 0:01:30]} Rc8 {[%emt 0:05:30]} 14. Rd2 {[%emt 0:08:30]} Qb6 {[%emt 0:06:30]} 15. g5 {[%emt 0:07:30]} Rxc3 {[%emt 0:09:30]} 16. bxc3 {[%emt 0:04:30]} Nxe4 {[%emt 0:00:30]} 17. Qf1 {[%emt 0:00:30]} Nxd2 {[%emt 0:00:30]} 18. Kxd2 {[%emt 0:00:30]} Bxh1 {[%emt 0:00:30]} 19. Qxh1 {[%emt 0:00:00]} d5 {[%emt 0:01:30]} 20. Qd1 {[%emt 0:04:00]} 0-1

[Event "Turkish Youth Championships 2023"]
[Site "Samsun"]
[Date "2023.05.21"]
[Round "4.1"]
[White "Isik, Alparslan"]
[Black "Hasirci, Ozgur Deniz"]
[Result "1-0"]
[WhiteElo "2451"]
[BlackElo "1763"]
[Annotator "TA"]
[PlyCount "77"]
[EventDate "2023.05.19"]
[EventType "swiss"]
[EventCountry "TUR"]
[TimeControl "5400+30"]

{[%evp 22,77,48,39,58,42,34,55,46,12,33,31,29,18,281,304,294,289,262,319,285,209,182,183,170,39,182,173,279,283,370,351,351,369,351,367,733,618,877,812,29987,29988,29988,29989,29975,29976,29967,29962,11276,12433,5110,1030,29975,29975,29983,29984,29984,29985]} 1. e4 {[%emt 0:04:00]} c5 {[%emt 0:01:00]} 2. Nf3 {[%emt 0:00:30]} d6 {[%emt 0:00:30]} 3. d4 {[%emt 0:00:30]} cxd4 {[%emt 0:00:30]} 4. Nxd4 {[%emt 0:00:30]} Nf6 {[%emt 0:00:30]} 5. Nc3 {[%emt 0:00:30]} a6 {[%emt 0:00:00]} 6. Bg5 {[%emt 0:00:30]} e6 {[%emt 0:00:00]} 7. f4 {[%emt 0:00:30]} Be7 {[%emt 0:00:00]} 8. Qf3 {[%emt 0:00:30]} Qc7 {[%emt 0:00:00]} 9. O-O-O {[%emt 0:00:30]} Nbd7 {[%emt 0:00:30]} 10. g4 {[%emt 0:00:30][%cal Bg2g4,Bg4g5][%mdl 32]} h6 {[%emt 0:00:00]} 11. Bxf6 {[%emt 0:01:30]} Bxf6 {[%emt 0:00:00]} 12. h4 {[%emt 0:00:30]} Nb6 {[%emt 0:00:00] Nowadays more popular than 12...Qb6. B99: Sicilian Najdorf: 6 Bg5 e6 7 f4 Be7 8 Qf3 Qc7 9 0-0-0 Nbd7.} 13. g5 {[%emt 0:00:30]} Bxd4 {[%emt 0:00:00]} 14. Rxd4 {[%emt 0:00:30][%cal Bd1d4,Bd4e4,Be4e1,Be1e5][%mdl 32]} Qc5 {[%emt 0:00:00] White is slightly better.} 15. Qf2 {[%emt 0:00:30][%cal Oe4e5] Strongly threatening e5!} hxg5 $1 {[%emt 0:08:00]} 16. e5 {[%emt 0:00:30]} gxf4 {[%emt 0:10:30]} (16... dxe5 $2 17. Rd8+ Kxd8 18. Qxc5 $18) 17. Bd3 {[%emt 0:00:30] [#] Threatens to win with Ne4.} (17. Ne4 Qxe5 18. Nxd6+ Ke7 $15) 17... O-O $146 {[%emt 0:31:30][%mdl 8192]} (17... d5 $1 $11) ({Predecessor:} 17... f5 18. exf6 e5 19. fxg7 Rg8 20. Bg6+ Ke7 21. h5 Qxd4 22. Qh4+ Kd7 23. h6 Kc6 {1-0 Hong,A (2504)-Brodsky,D (2496) USA-ch U20 Saint Louis 2022 (1)}) 18. Rg1 $1 $18 {[%emt 0:29:30][%cal Oc3d5]} Qxe5 {[%emt 0:13:30]} (18... dxe5 19. Qg2 g6 20. Bxg6 Re8 21. Bh5+ Kf8 22. Qg8+ Ke7 23. Qxf7#) 19. Re4 {[%emt 0:01:30] Prevents Qe3+} Qc5 {[%emt 0:00:30] [#]} 20. Qg2 {[%emt 0:00:30][%csl Gg1][%cal Rg2g7]} g6 {[%emt 0:00:30]} 21. Ree1 {[%emt 0:03:30][%cal Od3g6] And now Bxg6! would win.} Qh5 {[%emt 0:01:30]} 22. Qf2 {[%emt 0:05:30][%csl LRb6,LRf4] Repels f3. Black must now prevent Rg5.} Nd7 {[%emt 0:09:30] [#]} 23. Qxf4 {[%emt 0:08:30]} (23. Ne4 $1 $18) 23... Nc5 {[%emt 0:06:09]} (23... e5 $14 24. Qc4 Kg7) 24. Qxd6 {[%emt 0:04:30] Kb1 is the strong threat.} Nxd3+ {[%emt 0:07:59]} (24... b6 $142) 25. cxd3 {[%emt 0:00:30] Hoping for Kb1.} e5 {[%emt 0:00:56]} 26. Rxe5 {[%emt 0:00:30]} Qh6+ {[%emt 0:00:30] Black is weak on the dark squares} 27. Kb1 {[%emt 0:02:30]} Be6 {[%emt 0:04:36]} 28. h5 {[%emt 0:07:30] hxg6 would be deadly.} Rfd8 $2 {[%emt 0:00:13]} (28... Rad8 29. Qb4 Rde8) 29. Qb4 {[%emt 0:03:30] aiming for hxg6.} Qh8 {[%emt 0:02:23] [#]} 30. Rxe6 {[%emt 0:02:30][%mdl 576] Deflection} fxe6 {[%emt 0:00:05]} (30... Qxh5 31. Ne4) 31. Rxg6+ {[%emt 0:01:30]} (31. hxg6 $2 {perishes.} Qd4 32. Qxd4 Rxd4 $19) 31... Kf7 {[%emt 0:00:30]} 32. Qxb7+ {[%emt 0:00:30]} Kf8 {[%emt 0:00:00]} 33. Qb4+ {[%emt 0:00:30]} Kf7 {[%emt 0:00:00]} 34. Qf4+ {[%emt 0:03:32]} Ke7 {[%emt 0:00:26]} 35. h6 {[%emt 0:00:04] Threatening mate with Ne4.} Rd7 {[%emt 0:02:51]} 36. Rg7+ {[%emt 0:00:07]} (36. Qe4 $142 Qd4 37. Rxe6+ (37. Qxa8 Qxd3+ 38. Ka1 Qxg6 $11) 37... Kf7 38. Re7+ {[%mdl 64] Deflection} (38. Qxa8 Qxd3+ 39. Ka1 Kxe6 $14) 38... Rxe7 39. Qxd4) 36... Ke8 {[%emt 0:00:50]} 37. Qe4 {[%emt 0:00:06][%csl LRa8,LRe6] White mates.} Raa7 {[%emt 0:02:07]} 38. Qxe6+ {[%emt 0:00:30]} Kd8 {[%emt 0:00:30]} 39. Rg8+ {[%emt 0:00:00] An entertaining game by Isik.   Weighted Error Value: White=0.16 (very precise) /Black=0.63} 1-0

[Event "Turkish Youth Championships 2023"]
[Site "Samsun"]
[Date "2023.05.21"]
[Round "4.2"]
[White "Atis, Hasan"]
[Black "Akbas, Umut Ata"]
[Result "1/2-1/2"]
[WhiteElo "1890"]
[BlackElo "2417"]
[Annotator "TA"]
[PlyCount "98"]
[EventDate "2023.05.19"]
[EventType "swiss"]
[EventCountry "TUR"]
[TimeControl "5400+30"]

{[%evp 15,98,0,0,-37,-19,-14,7,19,57,58,178,178,244,263,343,79,80,33,38,26,31,16,47,0,0,0,0,0,0,0,18,18,23,17,10,12,5,12,21,10,18,12,29,30,39,41,37,24,30,29,25,0,0,0,22,-10,0,0,0,0,0,0,0,0,0,0,0,0,0,0,0,0,0,0,0,0,0,0,0,0,0,0,0,0,29991]} 1. e4 {[%emt 0:01:00]} c5 {[%emt 0:15:00]} 2. Nf3 {[%emt 0:00:30]} d6 {[%emt 0:02:30]} 3. d4 {[%emt 0:00:30]} cxd4 {[%emt 0:00:30]} 4. Nxd4 {[%emt 0:00:00]} Nf6 {[%emt 0:00:30]} 5. Nc3 {[%emt 0:00:00]} a6 {[%emt 0:00:00]} 6. Bg5 {[%emt 0:00:00]} e6 {[%emt 0:00:00]} 7. Qf3 {[%emt 0:00:00]} Nbd7 {[%emt 0:01:30]} 8. O-O-O {[%emt 0:00:30] 8.Be2 is vanishing.} Qc7 {[%emt 0:00:30]} 9. Bd3 {[%emt 0:00:30] is the legacy move (9.Qg3). B95: Sicilian Najdorf: 6 Bg5 e6, unusual White 7th moves.} Be7 {[%emt 0:04:30]} 10. Qg3 {[%emt 0:00:30]} O-O {[%emt 0:08:30]} 11. Rhe1 {[%emt 0:00:00]} Nc5 {[%emt 0:26:30]} 12. f4 {[%emt 0:01:00][%cal Bf2f4,Bf4e5][%mdl 32]} Re8 {[%emt 0:01:30]} ({Better is} 12... e5 $14 13. fxe5 dxe5 14. Bxf6 Bxf6) 13. e5 $18 {[%emt 0:20:30]} dxe5 {[%emt 0:01:30]} (13... Nxd3+ $142 14. Rxd3 (14. Qxd3 dxe5 15. fxe5 Nd5 $16) 14... Nh5) 14. fxe5 {[%emt 0:00:00]} Nd5 {[%emt 0:00:00] [#]} 15. Bxe7 $2 {[%emt 0:19:00]} (15. Nf5 $1 $18 {and the rest is easy.} Nxc3 16. Nxg7) 15... Nxe7 $16 {[%emt 0:01:00]} 16. Ne4 {[%emt 0:07:30] White has more active pieces. The black rooks are badly placed.} (16. Nf3 $16 {[%cal Od3h7] aiming for Bxh7+!} Nxd3+ 17. Rxd3) 16... Nxe4 $14 {[%emt 0:11:30] [#]} 17. Bxe4 $146 {[%emt 0:01:30]} ({Predecessor:} 17. Rxe4 Nf5 18. Nxf5 exf5 19. Rd4 Be6 20. a3 Rad8 21. Rxd8 Rxd8 22. Qf4 g6 23. Qg5 Bc4 24. Bxc4 Rxd1+ 25. Kxd1 Qxc4 {½-½ Stacey,J-Conde Poderoso,J FRIENDLY email 1998}) 17... Bd7 {[%emt 0:01:30]} 18. Rd3 {[%emt 0:02:30]} Nf5 {[%emt 0:07:14]} (18... Rad8 {seems wilder.} 19. Red1 h6 20. a3 Ba4) 19. Bxf5 {[%emt 0:06:30]} (19. Qf4 $14) 19... exf5 $11 {[%emt 0:00:30]} 20. c3 {[%emt 0:12:30]} Qc4 {[%emt 0:01:41]} 21. b3 {[%emt 0:00:30]} Qc5 {[%emt 0:00:30]} 22. Qf4 {[%emt 0:03:30]} Re7 {[%emt 0:07:42] Black is weak on the dark squares} 23. Kb2 {[%emt 0:09:36]} Rae8 {[%emt 0:01:21][%cal Re7e5]} 24. Rde3 {[%emt 0:00:01]} b5 {[%emt 0:02:02]} 25. Nxf5 {[%emt 0:05:20]} Bxf5 {[%emt 0:00:30]} 26. Qxf5 {[%emt 0:00:00]} f6 {[%emt 0:00:00]} 27. b4 {[%emt 0:03:49]} Qd5 {[%emt 0:00:30]} 28. Qf3 {[%emt 0:01:35]} Qxf3 {[%emt 0:01:42]} (28... Rxe5 $2 29. Qxd5+ Rxd5 30. Rxe8+ $18) (28... Qd2+ {is more complex.} 29. Kb3 Rxe5 30. Rxe5 fxe5 31. Rd1 Qf4) 29. gxf3 {[%emt 0:00:30]} fxe5 {[%emt 0:00:21][%mdl 4096] Endgame [#] KRR-KRR} 30. a4 $1 {[%emt 0:02:26]} Kf7 {[%emt 0:01:07]} 31. axb5 {[%emt 0:00:30]} axb5 {[%emt 0:00:30]} 32. Rd1 {[%emt 0:00:00]} Ke6 {[%emt 0:00:13] Prevents Rd5.} 33. Red3 {[%emt 0:00:30]} Kf5 {[%emt 0:00:49] The position is equal.} 34. Rd5 {[%emt 0:00:16]} Kf4 {[%emt 0:00:33]} 35. R1d3 {[%emt 0:00:35]} (35. Rxb5 $5 {[%cal Rd1d3]} Kxf3 36. c4 $14) 35... Rb8 {[%emt 0:00:16]} 36. Rc5 {[%emt 0:00:46]} g5 {[%emt 0:00:28]} 37. Rdd5 {[%emt 0:01:53]} Kxf3 {[%emt 0:01:58]} 38. Rxe5 {[%emt 0:00:00]} Rxe5 {[%emt 0:00:15]} 39. Rxe5 {[%emt 0:00:09] KR-KR} h6 {[%emt 0:00:30]} 40. c4 {[%emt 0:00:30]} bxc4 {[%emt 0:00:30]} 41. Kc3 {[%emt 0:01:57]} Rc8 {[%emt 0:01:01]} 42. b5 {[%emt 0:00:14]} Kg2 {[%emt 0:00:57]} 43. Re2+ {[%emt 0:00:30]} Kh3 {[%emt 0:00:00]} 44. b6 {[%emt 0:01:01]} g4 {[%emt 0:00:06]} 45. Kb4 {[%emt 0:01:31]} h5 {[%emt 0:00:46][%cal Bh6h5,Bh5h4,Bh4g3][%mdl 32]} 46. Kb5 {[%emt 0:00:18]} (46. b7 $2 Rb8 47. Kxc4 Rxb7 $19) 46... h4 {[%emt 0:00:35]} 47. Rc2 {[%emt 0:00:33]} g3 {[%emt 0:01:41]} 48. hxg3 {[%emt 0:00:09]} (48. Rxc4 $2 {perishes.} gxh2 49. Rxc8 h1=Q $19) ({Don't go for} 48. b7 $2 Rb8 49. hxg3 hxg3 $19) 48... hxg3 {[%emt 0:00:09] Hoping for ...g2.} 49. Rxc4 {[%emt 0:00:11]} ({Not} 49. b7 $2 Rb8 50. Kc6 g2 $19) 49... Rc6 $2 {[%emt 0:00:36][%mdl 40960] Weighted Error Value: White=0.15 (very precise) /Black=0.15 (very precise) . An unexpected result.} 1/2-1/2